[Event "Titled Tuesday Blitz April 25 Early 2023"]
[White "Girya, Olga"]
[Black "Shimanov, Aleksandr"]
[WhiteFideId "4195752"]
[BlackFideId "4198603"]
[WhiteElo "2263"]
[BlackElo "2631"]
[Result "0-1"]
[Round "05"]
[TimeControl "180+2"]
[Date "2023.04.25"]
[WhiteClock "0:00:03"]
[BlackClock "0:00:08"]

1. d4 {[%clk 0:03:00]}  g6 {[%clk 0:03:00]} 2. e4 {[%clk 0:02:56]}  d6 {[%clk 0:03:00]} 3. Nf3 {[%clk 0:02:55]}  Nf6 {[%clk 0:03:00]} 4. Bd3 {[%clk 0:02:55]}  Bg7 {[%clk 0:02:59]} 5. O-O {[%clk 0:02:55]}  O-O {[%clk 0:02:59]} 6. Re1 {[%clk 0:02:47]}  c5 {[%clk 0:02:53]} 7. c3 {[%clk 0:02:41]}  Nc6 {[%clk 0:02:52]} 8. h3 {[%clk 0:02:36]}  cxd4 {[%clk 0:01:52]} 9. cxd4 {[%clk 0:02:35]}  e5 {[%clk 0:01:53]} 10. d5 {[%clk 0:02:25]}  Nb8 {[%clk 0:01:53]} 11. Nc3 {[%clk 0:02:18]}  Na6 {[%clk 0:01:52]} 12. Be3 {[%clk 0:02:13]}  b6 {[%clk 0:01:48]} 13. Rc1 {[%clk 0:01:50]}  Nc5 {[%clk 0:01:47]} 14. Bb1 {[%clk 0:01:50]}  a5 {[%clk 0:01:47]} 15. a3 {[%clk 0:01:50]}  a4 {[%clk 0:01:43]} 16. Bxc5 {[%clk 0:01:47]}  bxc5 {[%clk 0:01:44]} 17. Nxa4 {[%clk 0:01:48]}  Nh5 {[%clk 0:01:42]} 18. b4 {[%clk 0:01:34]}  cxb4 {[%clk 0:01:38]} 19. axb4 {[%clk 0:01:34]}  Nf4 {[%clk 0:01:38]} 20. b5 {[%clk 0:01:12]}  Bd7 {[%clk 0:01:31]} 21. Nc3 {[%clk 0:00:32]}  Bh6 {[%clk 0:01:24]} 22. Bc2 {[%clk 0:00:25]}  Qf6 {[%clk 0:01:19]} 23. Rb1 {[%clk 0:00:20]}  Rac8 {[%clk 0:01:14]} 24. Rb3 {[%clk 0:00:19]}  Rc5 {[%clk 0:01:10]} 25. Ne2 {[%clk 0:00:18]}  Nh5 {[%clk 0:01:06]} 26. Ng3 {[%clk 0:00:15]}  Nxg3 {[%clk 0:01:05]} 27. fxg3 {[%clk 0:00:15]}  Bxb5 {[%clk 0:01:05]} 28. Nh2 {[%clk 0:00:10]}  Qe7 {[%clk 0:01:00]} 29. Ng4 {[%clk 0:00:10]}  Bg7 {[%clk 0:01:00]} 30. Qd2 {[%clk 0:00:10]}  Rfc8 {[%clk 0:00:57]} 31. Bd3 {[%clk 0:00:10]}  Bd7 {[%clk 0:00:57]} 32. Nh6+ {[%clk 0:00:10]}  Kh8 {[%clk 0:00:55]} 33. Rf1 {[%clk 0:00:10]}  Rf8 {[%clk 0:00:55]} 34. Ng4 {[%clk 0:00:09]}  h5 {[%clk 0:00:55]} 35. Ne3 {[%clk 0:00:09]}  Bh6 {[%clk 0:00:54]} 36. Qe2 {[%clk 0:00:10]}  Bc8 {[%clk 0:00:52]} 37. Rb2 {[%clk 0:00:10]}  Qg5 {[%clk 0:00:51]} 38. Rf3 {[%clk 0:00:09]}  Rc1+ {[%clk 0:00:51]} 39. Kh2 {[%clk 0:00:09]}  h4 {[%clk 0:00:46]} 40. g4 {[%clk 0:00:08]}  Qd8 {[%clk 0:00:44]} 41. Rc2 {[%clk 0:00:09]}  Bf4+ {[%clk 0:00:39]} 42. Rxf4 {[%clk 0:00:06]}  Rxc2 {[%clk 0:00:39]} 43. Nxc2 {[%clk 0:00:03]}  exf4 {[%clk 0:00:40]} 44. Nd4 {[%clk 0:00:04]}  Qf6 {[%clk 0:00:37]} 45. Nf3 {[%clk 0:00:04]}  Bd7 {[%clk 0:00:28]} 46. g5 {[%clk 0:00:04]}  Qc3 {[%clk 0:00:29]} 47. Nxh4 {[%clk 0:00:04]}  Rb8 {[%clk 0:00:29]} 48. Nf3 {[%clk 0:00:04]}  Rb2 {[%clk 0:00:28]} 49. Qf1 {[%clk 0:00:03]}  Kg7 {[%clk 0:00:26]} 50. e5 {[%clk 0:00:03]}  dxe5 {[%clk 0:00:25]} 51. Be4 {[%clk 0:00:04]}  Qe3 {[%clk 0:00:25]} 52. Qd3 {[%clk 0:00:03]}  Qxd3 {[%clk 0:00:25]} 53. Bxd3 {[%clk 0:00:04]}  Bb5 {[%clk 0:00:20]} 54. Nxe5 {[%clk 0:00:04]}  Rb3 {[%clk 0:00:06]} 55. Bxb5 {[%clk 0:00:03]}  Rxb5 {[%clk 0:00:07]} 56. Nd3 {[%clk 0:00:04]}  Rxd5 {[%clk 0:00:07]} 57. Nxf4 {[%clk 0:00:04]}  Rxg5 {[%clk 0:00:08]} 58. h4 {[%clk 0:00:04]}  Ra5 {[%clk 0:00:09]} 59. Kh3 {[%clk 0:00:04]}  Kf6 {[%clk 0:00:09]} 60. g3 {[%clk 0:00:04]}  Kf5 {[%clk 0:00:09]} 61. Ng2 {[%clk 0:00:04]}  Ra3 {[%clk 0:00:10]} 62. Nf4 {[%clk 0:00:04]}  Ke4 {[%clk 0:00:09]} 63. h5 {[%clk 0:00:04]}  g5 {[%clk 0:00:09]} 64. Ng2 {[%clk 0:00:04]}  f5 {[%clk 0:00:08]} 65. h6 {[%clk 0:00:04]}  Ra6 {[%clk 0:00:08]} 66. g4 {[%clk 0:00:03]}  Rxh6+ {[%clk 0:00:07]} 67. Kg3 {[%clk 0:00:03]}  f4+ {[%clk 0:00:08]} 0-1


[Site "https://www.chess.com"]

[Event "Titled Tuesday Blitz April 25 Early 2023"]
[White "Bortnyk, Olexandr"]
[Black "Sviridov, Valery"]
[WhiteFideId "14120828"]
[BlackFideId "4120680"]
[WhiteElo "2734"]
[BlackElo "2457"]
[Result "1-0"]
[Round "05"]
[TimeControl "180+2"]
[Date "2023.04.25"]
[WhiteClock "0:00:22"]
[BlackClock "0:01:22"]

1. d4 {[%clk 0:03:00]}  g6 {[%clk 0:02:58]} 2. Nc3 {[%clk 0:02:56]}  Bg7 {[%clk 0:02:58]} 3. e4 {[%clk 0:02:56]}  d6 {[%clk 0:02:59]} 4. Be3 {[%clk 0:02:56]}  a6 {[%clk 0:02:59]} 5. a4 {[%clk 0:02:56]}  b6 {[%clk 0:02:59]} 6. Qd2 {[%clk 0:02:56]}  e6 {[%clk 0:02:59]} 7. h4 {[%clk 0:02:57]}  h6 {[%clk 0:02:58]} 8. h5 {[%clk 0:02:57]}  g5 {[%clk 0:02:58]} 9. f4 {[%clk 0:02:58]}  gxf4 {[%clk 0:02:58]} 10. Bxf4 {[%clk 0:02:59]}  Bb7 {[%clk 0:02:58]} 11. Nf3 {[%clk 0:02:59]}  Nd7 {[%clk 0:02:58]} 12. O-O-O {[%clk 0:02:56]}  Ngf6 {[%clk 0:02:56]} 13. Bd3 {[%clk 0:02:40]}  Qe7 {[%clk 0:02:54]} 14. e5 {[%clk 0:02:39]}  dxe5 {[%clk 0:02:53]} 15. Nxe5 {[%clk 0:02:32]}  O-O-O {[%clk 0:02:41]} 16. Qe2 {[%clk 0:02:29]}  a5 {[%clk 0:02:38]} 17. Rhf1 {[%clk 0:02:18]}  Nxe5 {[%clk 0:02:30]} 18. Bxe5 {[%clk 0:02:19]}  Rhg8 {[%clk 0:02:30]} 19. Bc4 {[%clk 0:01:09]}  Nd5 {[%clk 0:02:11]} 20. Bxd5 {[%clk 0:01:08]}  Bxd5 {[%clk 0:02:10]} 21. Nxd5 {[%clk 0:00:57]}  Rxd5 {[%clk 0:02:11]} 22. Qa6+ {[%clk 0:00:57]}  Kd7 {[%clk 0:02:07]} 23. c4 {[%clk 0:00:50]}  Rxe5 {[%clk 0:01:45]} 24. dxe5+ {[%clk 0:00:48]}  Kc6 {[%clk 0:01:46]} 25. Kb1 {[%clk 0:00:28]}  Qh4 {[%clk 0:01:22]} 26. Rd6+ {[%clk 0:00:22]} 1-0


[Site "https://www.chess.com"]

[Event "Titled Tuesday Blitz April 25 Early 2023"]
[White "Seo, Jung Min"]
[Black "Van Foreest, Jorden"]
[WhiteFideId "1734687"]
[BlackFideId "1039784"]
[WhiteElo "2468"]
[BlackElo "2633"]
[Result "0-1"]
[Round "05"]
[TimeControl "180+2"]
[Date "2023.04.25"]
[WhiteClock "0:00:16"]
[BlackClock "0:00:19"]

1. Nf3 {[%clk 0:02:59]}  Nf6 {[%clk 0:02:58]} 2. c4 {[%clk 0:02:59]}  c6 {[%clk 0:02:57]} 3. d4 {[%clk 0:02:59]}  d5 {[%clk 0:02:58]} 4. e3 {[%clk 0:02:59]}  g6 {[%clk 0:02:56]} 5. Nc3 {[%clk 0:02:59]}  Bg7 {[%clk 0:02:56]} 6. Bd3 {[%clk 0:02:56]}  O-O {[%clk 0:02:55]} 7. O-O {[%clk 0:02:56]}  dxc4 {[%clk 0:02:54]} 8. Bxc4 {[%clk 0:02:56]}  b5 {[%clk 0:02:55]} 9. Bd3 {[%clk 0:02:55]}  a5 {[%clk 0:02:50]} 10. h3 {[%clk 0:02:52]}  Bb7 {[%clk 0:02:44]} 11. e4 {[%clk 0:02:51]}  Na6 {[%clk 0:02:36]} 12. Qe2 {[%clk 0:02:44]}  Nc7 {[%clk 0:02:27]} 13. Rd1 {[%clk 0:02:31]}  Nd7 {[%clk 0:02:25]} 14. Bf4 {[%clk 0:02:27]}  Nb6 {[%clk 0:02:24]} 15. Rac1 {[%clk 0:02:23]}  a4 {[%clk 0:02:21]} 16. a3 {[%clk 0:02:16]}  Ne6 {[%clk 0:02:21]} 17. Be3 {[%clk 0:02:15]}  f5 {[%clk 0:02:04]} 18. d5 {[%clk 0:01:59]}  fxe4 {[%clk 0:01:47]} 19. Bxe4 {[%clk 0:01:44]}  Nxd5 {[%clk 0:01:10]} 20. Nxd5 {[%clk 0:01:44]}  cxd5 {[%clk 0:01:11]} 21. Qxb5 {[%clk 0:01:43]}  Rb8 {[%clk 0:01:00]} 22. Rxd5 {[%clk 0:01:27]}  Qe8 {[%clk 0:00:53]} 23. Qc4 {[%clk 0:01:05]}  Kh8 {[%clk 0:00:48]} 24. Rd2 {[%clk 0:00:51]}  Rc8 {[%clk 0:00:46]} 25. Bxb7 {[%clk 0:00:50]}  Rxc4 {[%clk 0:00:46]} 26. Rxc4 {[%clk 0:00:51]}  Qb5 {[%clk 0:00:47]} 27. Bd5 {[%clk 0:00:50]}  Nd8 {[%clk 0:00:39]} 28. Rb4 {[%clk 0:00:50]}  Qa5 {[%clk 0:00:37]} 29. Bb6 {[%clk 0:00:41]}  Qa6 {[%clk 0:00:31]} 30. Bxd8 {[%clk 0:00:23]}  Rxd8 {[%clk 0:00:31]} 31. Ng5 {[%clk 0:00:23]}  Bh6 {[%clk 0:00:19]} 32. Nf7+ {[%clk 0:00:23]}  Kg7 {[%clk 0:00:19]} 33. Nxh6 {[%clk 0:00:23]}  Kxh6 {[%clk 0:00:19]} 34. Rh4+ {[%clk 0:00:22]}  Kg7 {[%clk 0:00:19]} 35. Rhd4 {[%clk 0:00:21]}  Qa5 {[%clk 0:00:18]} 36. Bf3 {[%clk 0:00:19]}  Qxd2 {[%clk 0:00:17]} 37. Rxd2 {[%clk 0:00:19]}  Rxd2 {[%clk 0:00:18]} 38. Bc6 {[%clk 0:00:19]}  Rxb2 {[%clk 0:00:16]} 39. Bxa4 {[%clk 0:00:19]}  Ra2 {[%clk 0:00:17]} 40. Bc6 {[%clk 0:00:17]}  Rxa3 {[%clk 0:00:18]} 41. g3 {[%clk 0:00:17]}  g5 {[%clk 0:00:18]} 42. Kg2 {[%clk 0:00:17]}  Kf6 {[%clk 0:00:19]} 43. Bf3 {[%clk 0:00:17]}  Ke5 {[%clk 0:00:19]} 44. Bg4 {[%clk 0:00:16]}  Ke4 {[%clk 0:00:19]} 0-1


[Site "https://www.chess.com"]

[Event "Titled Tuesday Blitz April 25 Early 2023"]
[White "Durarbayli, Vasif"]
[Black "Wieczorek, Oskar"]
[WhiteFideId "13402935"]
[BlackFideId "1133950"]
[WhiteElo "2551"]
[BlackElo "2418"]
[Result "0-1"]
[Round "05"]
[TimeControl "180+2"]
[Date "2023.04.25"]
[WhiteClock "0:00:03"]
[BlackClock "0:00:06"]

1. e4 {[%clk 0:02:48]}  c5 {[%clk 0:02:58]} 2. Nf3 {[%clk 0:02:47]}  e6 {[%clk 0:02:57]} 3. d4 {[%clk 0:02:47]}  cxd4 {[%clk 0:02:58]} 4. Nxd4 {[%clk 0:02:48]}  Nf6 {[%clk 0:02:59]} 5. Nc3 {[%clk 0:02:47]}  d6 {[%clk 0:02:58]} 6. g4 {[%clk 0:02:47]}  e5 {[%clk 0:02:59]} 7. Nf5 {[%clk 0:02:39]}  h5 {[%clk 0:02:57]} 8. g5 {[%clk 0:02:29]}  Nxe4 {[%clk 0:02:55]} 9. Nxg7+ {[%clk 0:02:30]}  Bxg7 {[%clk 0:02:55]} 10. Nxe4 {[%clk 0:02:31]}  d5 {[%clk 0:02:56]} 11. Ng3 {[%clk 0:02:31]}  Nc6 {[%clk 0:02:53]} 12. Nxh5 {[%clk 0:02:21]}  Rxh5 {[%clk 0:02:54]} 13. Qxh5 {[%clk 0:02:21]}  Nd4 {[%clk 0:02:54]} 14. Qd1 {[%clk 0:02:18]}  Bf5 {[%clk 0:02:28]} 15. Bd3 {[%clk 0:02:18]}  e4 {[%clk 0:02:28]} 16. Be2 {[%clk 0:02:18]}  e3 {[%clk 0:02:29]} 17. Bd3 {[%clk 0:02:07]}  e2 {[%clk 0:02:27]} 18. Bxe2 {[%clk 0:02:01]}  Nxc2+ {[%clk 0:02:27]} 19. Kf1 {[%clk 0:02:01]}  Nxa1 {[%clk 0:02:14]} 20. h4 {[%clk 0:01:27]}  Rc8 {[%clk 0:02:04]} 21. h5 {[%clk 0:01:25]}  Nc2 {[%clk 0:01:57]} 22. h6 {[%clk 0:01:21]}  Bh8 {[%clk 0:01:55]} 23. Rh4 {[%clk 0:00:59]}  Nd4 {[%clk 0:01:30]} 24. Bh5 {[%clk 0:00:56]}  Qd7 {[%clk 0:00:44]} 25. h7 {[%clk 0:00:32]}  Ne6 {[%clk 0:00:30]} 26. Bd2 {[%clk 0:00:28]}  d4 {[%clk 0:00:27]} 27. Qf3 {[%clk 0:00:26]}  Qb5+ {[%clk 0:00:22]} 28. Kg1 {[%clk 0:00:23]}  Rc2 {[%clk 0:00:20]} 29. a4 {[%clk 0:00:16]}  Qe5 {[%clk 0:00:17]} 30. Qxb7 {[%clk 0:00:14]}  Rxd2 {[%clk 0:00:17]} 31. Bxf7+ {[%clk 0:00:06]}  Kf8 {[%clk 0:00:11]} 32. Kg2 {[%clk 0:00:03]}  Nf4+ {[%clk 0:00:06]} 0-1


[Site "https://www.chess.com"]

[Event "Titled Tuesday Blitz April 25 Early 2023"]
[White "Movahed, Sina"]
[Black "Nikologorskiy, Konstantin"]
[WhiteFideId "42520835"]
[BlackFideId "24111708"]
[WhiteElo "2225"]
[BlackElo "2293"]
[Result "1/2-1/2"]
[Round "05"]
[TimeControl "180+2"]
[Date "2023.04.25"]
[WhiteClock "0:00:04"]
[BlackClock "0:00:05"]

1. Nf3 {[%clk 0:03:00]}  d5 {[%clk 0:02:50]} 2. g3 {[%clk 0:03:00]}  c6 {[%clk 0:02:49]} 3. Bg2 {[%clk 0:03:00]}  Nf6 {[%clk 0:02:48]} 4. O-O {[%clk 0:03:00]}  Bf5 {[%clk 0:02:49]} 5. d3 {[%clk 0:03:00]}  h6 {[%clk 0:02:49]} 6. Nbd2 {[%clk 0:03:01]}  e6 {[%clk 0:02:49]} 7. Qe1 {[%clk 0:03:00]}  Bh7 {[%clk 0:02:48]} 8. e4 {[%clk 0:03:01]}  Be7 {[%clk 0:02:49]} 9. Qe2 {[%clk 0:02:59]}  O-O {[%clk 0:02:49]} 10. Re1 {[%clk 0:02:55]}  a5 {[%clk 0:02:49]} 11. a4 {[%clk 0:02:51]}  Na6 {[%clk 0:02:47]} 12. e5 {[%clk 0:02:37]}  Nd7 {[%clk 0:02:47]} 13. Nb3 {[%clk 0:02:36]}  Nb4 {[%clk 0:02:36]} 14. Rd1 {[%clk 0:02:34]}  b5 {[%clk 0:02:32]} 15. c3 {[%clk 0:02:31]}  Na6 {[%clk 0:02:31]} 16. Nbd4 {[%clk 0:02:27]}  Qb6 {[%clk 0:02:28]} 17. Be3 {[%clk 0:02:27]}  Bc5 {[%clk 0:02:22]} 18. h4 {[%clk 0:02:16]}  Rab8 {[%clk 0:02:03]} 19. axb5 {[%clk 0:02:09]}  cxb5 {[%clk 0:01:59]} 20. Qd2 {[%clk 0:02:06]}  Qc7 {[%clk 0:01:48]} 21. Bf4 {[%clk 0:02:00]}  a4 {[%clk 0:01:33]} 22. b3 {[%clk 0:01:56]}  Bxd4 {[%clk 0:01:24]} 23. Nxd4 {[%clk 0:01:57]}  Nac5 {[%clk 0:01:24]} 24. Bf1 {[%clk 0:01:43]}  Nxb3 {[%clk 0:01:20]} 25. Nxb3 {[%clk 0:01:41]}  axb3 {[%clk 0:01:21]} 26. Qb2 {[%clk 0:01:37]}  Nc5 {[%clk 0:01:17]} 27. Ra3 {[%clk 0:01:25]}  b4 {[%clk 0:01:04]} 28. cxb4 {[%clk 0:01:24]}  Rxb4 {[%clk 0:01:05]} 29. Rc1 {[%clk 0:01:20]}  Qe7 {[%clk 0:00:54]} 30. Bd2 {[%clk 0:01:19]}  Rb7 {[%clk 0:00:49]} 31. d4 {[%clk 0:01:13]}  Ne4 {[%clk 0:00:38]} 32. Be1 {[%clk 0:01:12]}  Rfb8 {[%clk 0:00:13]} 33. f3 {[%clk 0:01:03]}  Qxa3 {[%clk 0:00:13]} 34. Qxa3 {[%clk 0:01:02]}  b2 {[%clk 0:00:13]} 35. fxe4 {[%clk 0:01:00]}  bxc1=Q {[%clk 0:00:09]} 36. Qxc1 {[%clk 0:00:59]}  Bxe4 {[%clk 0:00:10]} 37. Qf4 {[%clk 0:00:48]}  h5 {[%clk 0:00:08]} 38. Be2 {[%clk 0:00:31]}  Bg6 {[%clk 0:00:03]} 39. Kf2 {[%clk 0:00:28]}  Rb1 {[%clk 0:00:03]} 40. Bd2 {[%clk 0:00:27]}  R8b2 {[%clk 0:00:03]} 41. Qg5 {[%clk 0:00:26]}  Rc2 {[%clk 0:00:02]} 42. g4 {[%clk 0:00:11]}  Rbb2 {[%clk 0:00:02]} 43. gxh5 {[%clk 0:00:10]}  Rxd2 {[%clk 0:00:02]} 44. hxg6 {[%clk 0:00:09]}  Rxe2+ {[%clk 0:00:02]} 45. Kf1 {[%clk 0:00:09]}  Rf2+ {[%clk 0:00:02]} 46. Ke1 {[%clk 0:00:09]}  Rbe2+ {[%clk 0:00:03]} 47. Kd1 {[%clk 0:00:10]}  Rd2+ {[%clk 0:00:04]} 48. Kc1 {[%clk 0:00:10]}  Rc2+ {[%clk 0:00:04]} 49. Kd1 {[%clk 0:00:10]}  Rfd2+ {[%clk 0:00:05]} 50. Ke1 {[%clk 0:00:10]}  Re2+ {[%clk 0:00:05]} 51. Kd1 {[%clk 0:00:07]}  Rcd2+ {[%clk 0:00:06]} 52. Kc1 {[%clk 0:00:06]}  fxg6 {[%clk 0:00:02]} 53. Qxg6 {[%clk 0:00:04]}  Rc2+ {[%clk 0:00:03]} 54. Kd1 {[%clk 0:00:02]}  Rcd2+ {[%clk 0:00:03]} 55. Kc1 {[%clk 0:00:02]}  Rc2+ {[%clk 0:00:03]} 56. Kd1 {[%clk 0:00:02]}  Red2+ {[%clk 0:00:01]} 57. Ke1 {[%clk 0:00:03]}  Re2+ {[%clk 0:00:02]} 58. Kf1 {[%clk 0:00:03]}  Rf2+ {[%clk 0:00:03]} 59. Ke1 {[%clk 0:00:04]}  Rce2+ {[%clk 0:00:03]} 60. Kd1 {[%clk 0:00:04]}  Rd2+ {[%clk 0:00:04]} 61. Kc1 {[%clk 0:00:04]}  Rc2+ {[%clk 0:00:04]} 62. Kd1 {[%clk 0:00:04]}  Rcd2+ {[%clk 0:00:05]} 63. Ke1 {[%clk 0:00:03]}  Rde2+ {[%clk 0:00:05]} 64. Kd1 {[%clk 0:00:04]}  Rd2+ {[%clk 0:00:05]} 1/2-1/2


[Site "https://www.chess.com"]

[Event "Titled Tuesday Blitz April 25 Early 2023"]
[White "Akash G"]
[Black "Fressinet, Laurent"]
[WhiteFideId "5040299"]
[BlackFideId "608742"]
[WhiteElo "2395"]
[BlackElo "2633"]
[Result "0-1"]
[Round "05"]
[TimeControl "180+2"]
[Date "2023.04.25"]
[WhiteClock "0:00:07"]
[BlackClock "0:00:11"]

1. e4 {[%clk 0:03:00]}  e5 {[%clk 0:02:59]} 2. Nf3 {[%clk 0:03:00]}  Nc6 {[%clk 0:02:59]} 3. Bb5 {[%clk 0:03:00]}  a6 {[%clk 0:02:58]} 4. Ba4 {[%clk 0:03:00]}  Nf6 {[%clk 0:02:58]} 5. O-O {[%clk 0:02:57]}  Bc5 {[%clk 0:02:58]} 6. Bxc6 {[%clk 0:02:53]}  dxc6 {[%clk 0:02:58]} 7. d3 {[%clk 0:02:51]}  Qd6 {[%clk 0:02:48]} 8. Nbd2 {[%clk 0:02:49]}  Be6 {[%clk 0:02:48]} 9. b3 {[%clk 0:02:35]}  Nd7 {[%clk 0:02:46]} 10. Ng5 {[%clk 0:02:30]}  f6 {[%clk 0:02:38]} 11. Nxe6 {[%clk 0:02:29]}  Qxe6 {[%clk 0:02:39]} 12. Nc4 {[%clk 0:02:17]}  O-O-O {[%clk 0:02:35]} 13. Kh1 {[%clk 0:02:15]}  h5 {[%clk 0:02:31]} 14. Rb1 {[%clk 0:02:09]}  Nb6 {[%clk 0:02:03]} 15. Qe2 {[%clk 0:01:46]}  g5 {[%clk 0:01:55]} 16. b4 {[%clk 0:01:37]}  Be7 {[%clk 0:01:54]} 17. Na5 {[%clk 0:01:35]}  h4 {[%clk 0:01:43]} 18. Rb3 {[%clk 0:01:07]}  h3 {[%clk 0:01:39]} 19. g4 {[%clk 0:01:06]}  Kb8 {[%clk 0:01:23]} 20. Be3 {[%clk 0:00:58]}  Rd4 {[%clk 0:01:09]} 21. c3 {[%clk 0:00:37]}  Rd7 {[%clk 0:01:08]} 22. Rfb1 {[%clk 0:00:29]}  Rxd3 {[%clk 0:01:01]} 23. Bxb6 {[%clk 0:00:17]}  Rd2 {[%clk 0:00:52]} 24. Qxd2 {[%clk 0:00:15]}  Qxg4 {[%clk 0:00:51]} 25. f3 {[%clk 0:00:14]}  Qxf3+ {[%clk 0:00:50]} 26. Kg1 {[%clk 0:00:15]}  cxb6 {[%clk 0:00:46]} 27. Rf1 {[%clk 0:00:11]}  Qg4+ {[%clk 0:00:44]} 28. Kf2 {[%clk 0:00:11]}  bxa5 {[%clk 0:00:41]} 29. Qe2 {[%clk 0:00:11]}  Rh4 {[%clk 0:00:31]} 30. Qxg4 {[%clk 0:00:10]}  Rxg4 {[%clk 0:00:32]} 31. Ke3 {[%clk 0:00:10]}  axb4 {[%clk 0:00:25]} 32. cxb4 {[%clk 0:00:11]}  Bd8 {[%clk 0:00:18]} 33. Kf3 {[%clk 0:00:08]}  Rf4+ {[%clk 0:00:17]} 34. Ke2 {[%clk 0:00:09]}  Rxe4+ {[%clk 0:00:18]} 35. Re3 {[%clk 0:00:09]}  Rxb4 {[%clk 0:00:17]} 36. Rxh3 {[%clk 0:00:10]}  Rb2+ {[%clk 0:00:17]} 37. Kd3 {[%clk 0:00:10]}  Rxa2 {[%clk 0:00:16]} 38. Rh8 {[%clk 0:00:11]}  Kc7 {[%clk 0:00:16]} 39. Rh7+ {[%clk 0:00:11]}  Kc8 {[%clk 0:00:15]} 40. Ke4 {[%clk 0:00:11]}  Ra4+ {[%clk 0:00:14]} 41. Kf5 {[%clk 0:00:10]}  Rf4+ {[%clk 0:00:15]} 42. Rxf4 {[%clk 0:00:11]}  exf4 {[%clk 0:00:16]} 43. h4 {[%clk 0:00:10]}  gxh4 {[%clk 0:00:16]} 44. Rxh4 {[%clk 0:00:10]}  Bc7 {[%clk 0:00:14]} 45. Kxf6 {[%clk 0:00:10]}  b5 {[%clk 0:00:14]} 46. Ke6 {[%clk 0:00:10]}  Kb7 {[%clk 0:00:14]} 47. Rh7 {[%clk 0:00:10]}  Kb6 {[%clk 0:00:13]} 48. Kd7 {[%clk 0:00:10]}  Be5 {[%clk 0:00:13]} 49. Rh6 {[%clk 0:00:09]}  b4 {[%clk 0:00:10]} 50. Rxc6+ {[%clk 0:00:10]}  Kb5 {[%clk 0:00:10]} 51. Re6 {[%clk 0:00:10]}  Bd4 {[%clk 0:00:10]} 52. Re4 {[%clk 0:00:10]}  Be3 {[%clk 0:00:11]} 53. Re5+ {[%clk 0:00:09]}  Kc4 {[%clk 0:00:10]} 54. Ra5 {[%clk 0:00:08]}  b3 {[%clk 0:00:10]} 55. Ra4+ {[%clk 0:00:08]}  Kc3 {[%clk 0:00:10]} 56. Rxa6 {[%clk 0:00:07]}  b2 {[%clk 0:00:10]} 57. Ra3+ {[%clk 0:00:08]}  Kc2 {[%clk 0:00:10]} 58. Ra2 {[%clk 0:00:07]}  Kb3 {[%clk 0:00:10]} 59. Rxb2+ {[%clk 0:00:07]}  Kxb2 {[%clk 0:00:11]} 0-1


[Site "https://www.chess.com"]

[Event "Titled Tuesday Blitz April 25 Early 2023"]
[White "hakanazeri2"]
[Black "Quesada Perez, Yuniesky"]
[BlackFideId "3504409"]
[WhiteElo "2640"]
[BlackElo "2585"]
[Result "0-1"]
[Round "05"]
[TimeControl "180+2"]
[Date "2023.04.25"]
[WhiteClock "0:00:03"]
[BlackClock "0:00:09"]

1. d4 {[%clk 0:03:00]}  d5 {[%clk 0:02:58]} 2. Nf3 {[%clk 0:02:53]}  Nf6 {[%clk 0:02:58]} 3. g3 {[%clk 0:02:49]}  Bf5 {[%clk 0:02:55]} 4. Bg2 {[%clk 0:02:46]}  e6 {[%clk 0:02:55]} 5. O-O {[%clk 0:02:47]}  Be7 {[%clk 0:02:48]} 6. c4 {[%clk 0:02:47]}  c6 {[%clk 0:02:47]} 7. b3 {[%clk 0:02:46]}  h6 {[%clk 0:02:45]} 8. Nbd2 {[%clk 0:02:46]}  Nbd7 {[%clk 0:02:44]} 9. Bb2 {[%clk 0:02:45]}  O-O {[%clk 0:02:44]} 10. Ne5 {[%clk 0:02:46]}  Bh7 {[%clk 0:02:40]} 11. Nxd7 {[%clk 0:02:38]}  Qxd7 {[%clk 0:02:39]} 12. Re1 {[%clk 0:02:39]}  a5 {[%clk 0:02:37]} 13. e4 {[%clk 0:02:39]}  Bb4 {[%clk 0:02:20]} 14. exd5 {[%clk 0:02:24]}  cxd5 {[%clk 0:02:12]} 15. a3 {[%clk 0:02:22]}  Be7 {[%clk 0:02:07]} 16. Nf3 {[%clk 0:02:20]}  Rfd8 {[%clk 0:01:59]} 17. Ne5 {[%clk 0:02:20]}  Qc7 {[%clk 0:01:58]} 18. c5 {[%clk 0:02:20]}  Be4 {[%clk 0:01:53]} 19. Bxe4 {[%clk 0:02:13]}  Nxe4 {[%clk 0:01:52]} 20. b4 {[%clk 0:02:05]}  axb4 {[%clk 0:01:46]} 21. axb4 {[%clk 0:02:06]}  Bf6 {[%clk 0:01:46]} 22. Ng4 {[%clk 0:02:01]}  Be7 {[%clk 0:01:41]} 23. Qd3 {[%clk 0:01:49]}  b6 {[%clk 0:01:29]} 24. Rec1 {[%clk 0:01:27]}  Rdb8 {[%clk 0:01:19]} 25. f3 {[%clk 0:01:17]}  Nf6 {[%clk 0:01:05]} 26. Nxf6+ {[%clk 0:01:15]}  Bxf6 {[%clk 0:01:06]} 27. Rxa8 {[%clk 0:01:05]}  Rxa8 {[%clk 0:01:06]} 28. c6 {[%clk 0:01:06]}  Be7 {[%clk 0:01:02]} 29. b5 {[%clk 0:01:05]}  Bd6 {[%clk 0:01:00]} 30. Kg2 {[%clk 0:01:03]}  Ra2 {[%clk 0:00:58]} 31. Rc2 {[%clk 0:01:03]}  Qa7 {[%clk 0:00:56]} 32. Bc1 {[%clk 0:01:02]}  Qa4 {[%clk 0:00:38]} 33. Rxa2 {[%clk 0:00:54]}  Qxa2+ {[%clk 0:00:39]} 34. Bd2 {[%clk 0:00:51]}  Bc7 {[%clk 0:00:32]} 35. h4 {[%clk 0:00:46]}  Qb2 {[%clk 0:00:30]} 36. Kh3 {[%clk 0:00:45]}  h5 {[%clk 0:00:27]} 37. Qc3 {[%clk 0:00:40]}  Qb1 {[%clk 0:00:26]} 38. Qc1 {[%clk 0:00:25]}  Qf5+ {[%clk 0:00:15]} 39. Kg2 {[%clk 0:00:23]}  f6 {[%clk 0:00:16]} 40. Bf4 {[%clk 0:00:19]}  e5 {[%clk 0:00:16]} 41. dxe5 {[%clk 0:00:20]}  fxe5 {[%clk 0:00:17]} 42. Bg5 {[%clk 0:00:20]}  Qd3 {[%clk 0:00:17]} 43. Qb2 {[%clk 0:00:14]}  Qc4 {[%clk 0:00:14]} 44. Bd2 {[%clk 0:00:04]}  d4 {[%clk 0:00:14]} 45. Bg5 {[%clk 0:00:03]}  Kh8 {[%clk 0:00:13]} 46. Qa3 {[%clk 0:00:03]}  Qe2+ {[%clk 0:00:10]} 47. Kh3 {[%clk 0:00:02]}  Qf1+ {[%clk 0:00:10]} 48. Kh2 {[%clk 0:00:03]}  Qf2+ {[%clk 0:00:10]} 49. Kh3 {[%clk 0:00:04]}  Qf1+ {[%clk 0:00:09]} 50. Kh2 {[%clk 0:00:03]}  Kh7 {[%clk 0:00:10]} 51. Qf8 {[%clk 0:00:03]}  Qf2+ {[%clk 0:00:09]} 0-1


[Site "https://www.chess.com"]